bitfinex-derivatives/quotes_SOLF0:USTF0_20250731
["timestamp","ask_amount","ask_price","bid_price","bid_amount"]
[1754004227974,3.24,172.87,172.86,3.08]
[1754004228275,3.24,172.87,172.74,432.68]
[1754004228276,3.24,172.86,172.8,3.08]
[1754004228479,5.7866,172.85,172.81,5.7876]
[1754004228778,3.24,172.83,172.82,3.08]
[1754004229377,3.24,172.83,172.82,8.8673]
[1754004229580,3.24,172.87,172.83,3.08]
[1754004229876,5.7862,172.86,172.83,3.08]
[1754004230078,3.24,172.84,172.83,3.08]
[1754004239189,3.29,172.86,172.84,3.28]
[1754004239389,3.29,172.88,172.85,3.28]
[1754004239578,3.29,172.86,172.85,3.28]
[1754004239783,3.29,172.85,172.82,5.7871]
[1754004240084,3.29,172.85,172.83,3.28]
[1754004240282,5.786,172.86,172.83,3.28]
[1754004240482,3.29,172.84,172.83,3.28]
[1754004240883,3.29,172.84,172.79,3.28]
[1754004241085,5.7874,172.82,172.79,9.0681]
[1754004241282,3.29,172.81,172.77,3.28]
[1754004241487,3.29,172.81,172.73,112.32373447]
[1754004241687,3.29,172.8,172.79,3.28]
[1754004242082,9.0775,172.82,172.73,112.32373447]
[1754004242391,5.40373447,172.83,172.8,3.28]
[1754004242392,3.29,172.81,172.8,3.28]
[1754004243185,5.40373447,172.85,172.8,3.28]
[1754004243386,4.18433412,172.84,172.8,3.28]
[1754004243581,3.29,172.83,172.8,3.28]
[1754004244095,3.29,172.82,172.8,3.28]
[1754004244391,3.29,172.86,172.78,3.28]
[1754004244691,3.29,172.84,172.81,3.28]
[1754004244887,3.29,172.82,172.78,3.28]
[1754004245291,3.29,172.81,172.78,3.28]
[1754004245782,5.7871,172.83,172.79,9.0682]
[1754004245984,3.29,172.82,172.79,9.0682]
[1754004246186,3.29,172.82,172.8,3.28]
[1754004246692,3.29,172.81,172.78,5.7885]
[1754004246891,3.29,172.81,172.78,3.28]
[1754004247192,3.29,172.82,172.79,9.068]
[1754004247686,3.29,172.82,172.8,9.0678]
[1754004247891,3.29,172.82,172.8,3.28]
[1754004248092,3.29,172.82,172.77,3.28]
[1754004248591,3.29,172.8,172.79,3.28]
[1754004249092,3.29,172.8,172.79,9.0683]
[1754004249288,3.29,172.83,172.77,3.28]
[1754004249489,7.47980323,172.82,172.77,3.28]
[1754004249685,3.29,172.81,172.8,5.7878]
[1754004249885,3.29,172.81,172.8,3.28]
[1754004250086,9.0772,172.83,172.77,3.28]
[1754004250387,3.29,172.81,172.77,3.28]
[1754004250593,3.29,172.8,172.77,3.28]
[1754004250889,3.29,172.8,172.79,5.7883]
[1754004251193,3.29,172.81,172.74,3.28]
[1754004251383,3.29,172.79,172.76,5.7891]
[1754004251585,3.29,172.79,172.74,3.28]
[1754004251788,3.29,172.79,172.75,3.28]
[1754004251985,3.29,172.77,172.74,5.7897]
[1754004252190,3.29,172.77,172.74,9.0697]
[1754004252391,3.64920846,172.8,172.75,3.28]
[1754004252392,3.29,172.76,172.75,3.28]
[1754004252786,3.29,172.76,172.72,3.64920846]
[1754004252996,3.29,172.76,172.7,6.92920846]
[1754004253197,5.7899,172.74,172.71,5.7907]
[1754004253488,5.7899,172.74,172.71,9.0707]
[1754004253489,3.29,172.73,172.71,9.0707]
[1754004253683,3.29,172.72,172.71,9.0707]
[1754004253884,5.7898,172.75,172.72,5.7905]
[1754004254089,3.29,172.73,172.72,5.7905]
[1754004254692,3.29,172.75,172.69,3.28]
[1754004255092,3.29,172.74,172.71,3.28]
[1754004255395,3.29,172.74,172.68,3.64920846]
[1754004255396,3.29,172.73,172.72,3.28]
[1754004256102,3.29,172.76,172.71,3.28]
[1754004256692,3.29,172.76,172.73,9.07]
[1754004257491,5.7893,172.76,172.73,9.07]
[1754004258001,3.29,172.75,172.73,9.07]
[1754004258192,5.7893,172.76,172.73,9.07]
[1754004258397,3.29,172.74,172.73,9.07]
[1754004260998,3.29,172.74,172.7,3.64920846]
[1754004260999,3.29,172.74,172.72,5.7904]
[1754004261399,3.29,172.74,172.7,3.28]
[1754004261800,3.29,172.73,172.67,3.28]
[1754004262200,5.7906,172.72,172.69,5.7913]
[1754004262391,3.29,172.73,172.67,3.28]
[1754004262589,9.0803,172.73,172.7,5.7911]
[1754004262794,3.29,172.72,172.7,9.0711]
[1754004262994,3.29,172.71,172.7,9.0711]
[1754004265002,3.29,172.71,172.69,5.7915]
[1754004265300,3.29,172.7,172.69,9.0715]
[1754004269505,3.29,172.7,172.69,5.7915]
[1754004269798,3.29,172.7,172.67,5.792]
[1754004270002,3.29,172.7,172.65,3.08]
[1754004270196,3.16,172.69,172.65,3.08]
[1754004270996,3.16,172.69,172.68,3.08]
[1754004271803,3.16,172.69,172.68,8.8719]
[1754004272000,3.16,172.69,172.68,3.08]
[1754004272800,3.16,172.7,172.68,3.08]
[1754004273000,3.16,172.74,172.69,3.08]
[1754004273202,3.16,172.76,172.71,3.08]
[1754004273496,3.16,172.75,172.71,3.08]
[1754004274006,3.16,172.74,172.71,3.08]
[1754004274302,3.16,172.74,172.73,8.8702]
[1754004274504,3.16,172.76,172.71,3.08]
[1754004274700,3.16,172.75,172.71,3.08]
[1754004275204,3.16,172.74,172.71,3.08]
[1754004276201,3.64920846,172.79,172.64,11.586]
[1754004276397,3.16,172.72,172.68,3.08]
[1754004276903,3.64920846,172.77,172.69,3.08]
[1754004277100,4.18975123,172.76,172.7,3.64920846]
[1754004277296,4.18975123,172.75,172.72,3.08]
[1754004277501,3.16,172.73,172.72,3.08]
[1754004278608,3.16,172.72,172.71,3.08]
[1754004278810,3.16,172.71,172.69,3.08]
[1754004279106,3.16,172.74,172.69,3.08]
[1754004279406,5.7909,172.71,172.7,3.08]
[1754004279608,8.9509,172.71,172.7,3.08]
[1754004279910,8.9509,172.71,172.65,3.08]
[1754004279911,3.16,172.7,172.65,3.08]
[1754004280104,3.16,172.7,172.56,45.00744]
[1754004280105,3.16,172.7,172.62,3.08]
[1754004280305,3.16,172.68,172.62,3.08]
[1754004280606,5.7928,172.66,172.62,3.08]
[1754004280909,3.16,172.65,172.62,3.08]
[1754004281211,3.16,172.65,172.63,5.7934]
[1754004281414,3.16,172.65,172.64,3.08]
[1754004281598,5.7929,172.65,172.6,3.64920846]
[1754004281904,5.7929,172.65,172.56,1.00744]
[1754004281905,3.16,172.66,172.61,3.08]
[1754004282108,3.16,172.63,172.62,3.08]
[1754004283818,3.16,172.66,172.58,3.64920846]
[1754004284112,3.16,172.65,172.64,3.08]
[1754004285106,3.16,172.67,172.65,3.08]
[1754004285309,3.16,172.66,172.65,3.08]
[1754004285700,3.16,172.68,172.65,5.7926]
[1754004285906,3.16,172.68,172.67,3.08]
[1754004286106,3.64920846,172.69,172.62,3.64920846]
[1754004286306,3.16,172.67,172.66,3.08]
[1754004287715,3.16,172.68,172.61,3.08]
[1754004288211,3.16,172.65,172.62,5.7937]
[1754004288408,3.16,172.65,172.63,3.08]
[1754004288610,8.9529,172.65,172.64,3.08]
[1754004289001,3.16,172.64,172.63,3.08]
[1754004289810,8.9532,172.64,172.63,3.08]
[1754004290012,3.16,172.64,172.61,3.08]
[1754004290208,3.16,172.66,172.59,3.08]
[1754004290809,3.16,172.63,172.58,3.64920846]
[1754004291015,3.16,172.63,172.56,1.00744]
[1754004291016,3.16,172.63,172.6,3.08]
[1754004291509,3.16,172.66,172.61,3.08]
[1754004292110,3.16,172.66,172.6,3.64920846]
[1754004292315,3.16,172.66,172.63,3.08]
[1754004292514,3.16,172.66,172.62,3.64920846]
[1754004292717,3.16,172.66,172.63,3.08]
[1754004292907,3.16,172.7,172.63,3.08]
[1754004293111,4.18587085,172.69,172.63,3.08]
[1754004293313,3.16,172.68,172.64,3.08]
[1754004293714,5.7924,172.67,172.64,8.873]
[1754004293914,3.16,172.65,172.64,3.08]
[1754004294115,3.16,172.64,172.62,3.08]
[1754004294313,3.16,172.63,172.62,3.08]
[1754004294515,3.16,172.63,172.62,8.8739]
[1754004295217,3.16,172.64,172.63,3.08]
[1754004296518,3.16,172.64,172.63,8.8735]
[1754004298513,3.16,172.64,172.63,3.08]
[1754004298721,8.9532,172.64,172.63,3.08]
[1754004300019,5.7932,172.64,172.6,3.64920846]
[1754004300216,3.16,172.66,172.6,3.64920846]
[1754004300421,3.16,172.66,172.61,3.21]
[1754004300717,8.952,172.68,172.63,3.21]
[1754004301018,3.16,172.7,172.63,9.0034]
[1754004301226,3.16,172.66,172.64,3.21]
[1754004301626,3.16,172.66,172.65,3.21]
[1754004302319,3.16,172.68,172.65,3.21]
[1754004302514,3.64920846,172.71,172.64,3.64920846]
[1754004302720,5.7921,172.68,172.66,3.21]
[1754004303022,3.16,172.67,172.65,3.21]
[1754004303319,3.16,172.67,172.66,5.7925]
[1754004303517,3.64920846,172.73,172.64,3.64920846]
[1754004303716,3.16,172.7,172.67,3.21]
[1754004303909,8.9514,172.7,172.67,9.002]
[1754004304113,3.16,172.75,172.68,6.85920846]
[1754004304311,4.19004835,172.74,172.71,3.21]
[1754004304517,3.16,172.72,172.71,3.21]
[1754004304920,3.16,172.71,172.63,3.21]
[1754004305219,3.16,172.74,172.67,3.21]
[1754004305412,3.16,172.72,172.67,3.21]
[1754004305611,3.16,172.72,172.66,3.64920846]
[1754004305821,5.7913,172.7,172.68,3.21]
[1754004306022,3.16,172.69,172.68,3.21]
[1754004307524,4.85317557,172.75,172.68,3.64920846]
[1754004307718,3.64920846,172.73,172.68,3.21]
[1754004307913,3.16,172.71,172.67,5.7921]
[1754004308220,3.16,172.69,172.66,3.21]
[1754004308924,5.7919,172.68,172.62,3.64920846]
[1754004309127,3.16,172.66,172.65,9.0028]
[1754004309518,3.16,172.67,172.66,3.21]
[1754004310318,3.16,172.7,172.66,3.64920846]
[1754004310625,8.50238403,172.75,172.66,3.64920846]
[1754004310924,3.64920846,172.73,172.68,3.21]
[1754004311124,3.16,172.7,172.69,3.21]
[1754004312421,3.16,172.7,172.69,9.0015]
[1754004313520,4.1961438,172.7,172.67,3.21]
[1754004313719,3.16,172.7,172.64,3.64920846]
[1754004313921,4.19655354,172.69,172.65,3.21]
[1754004314126,3.64920846,172.71,172.64,3.64920846]
[1754004314127,3.16,172.68,172.67,3.21]
[1754004314723,3.16,172.68,172.67,9.0022]
[1754004314926,4.85799102,172.74,172.67,3.21]
[1754004315127,3.16,172.71,172.67,3.21]
[1754004315331,3.16,172.7,172.67,3.21]
[1754004315529,3.16,172.69,172.68,3.21]
[1754004316321,3.16,172.69,172.68,9.0018]
[1754004316827,3.16,172.69,172.68,3.21]
[1754004317818,3.16,172.69,172.68,9.0018]
[1754004319332,3.64920846,172.73,172.68,5.7918]
[1754004319530,7.35972958,172.72,172.69,3.21]
[1754004319727,3.16,172.7,172.69,3.21]
[1754004320029,7.35972958,172.7,172.69,3.21]
[1754004320230,7.35972958,172.7,172.65,3.64920846]
[1754004320427,3.16,172.69,172.68,3.21]
[1754004323233,7.36454169,172.69,172.68,3.21]
[1754004323525,3.16,172.69,172.68,3.21]
[1754004324528,3.16,172.71,172.69,3.21]
[1754004324728,4.20494007,172.7,172.69,3.21]
[1754004325130,7.36494007,172.7,172.69,3.21]
[1754004326531,7.36494007,172.7,172.67,5.7919]
[1754004326729,3.16,172.69,172.68,3.21]
[1754004327534,3.16,172.7,172.68,3.21]
[1754004328137,3.16,172.71,172.69,3.21]
[1754004328332,4.85799102,172.75,172.69,3.21]
[1754004328637,3.21,172.72,172.69,3.21]
[1754004328835,4.20430114,172.71,172.69,3.21]
[1754004330541,4.20430114,172.71,172.7,3.21]
[1754004330833,3.21,172.72,172.7,3.21]
[1754004331034,3.21,172.72,172.71,3.21]
[1754004331234,7.41744521,172.72,172.71,3.21]
[1754004332139,7.41744521,172.72,172.69,3.21]
[1754004332335,7.41744521,172.71,172.7,3.21]
[1754004332543,7.41744521,172.71,172.68,3.64920846]
[1754004332737,4.20751901,172.7,172.66,3.64920846]
[1754004332937,3.21,172.68,172.67,3.21]
[1754004333337,3.21,172.71,172.68,3.21]
[1754004333541,3.21,172.69,172.67,5.7917]
[1754004333841,3.21,172.69,172.66,3.64920846]
[1754004334041,3.21,172.69,172.68,5.7916]
[1754004334240,3.21,172.69,172.68,9.0016]
[1754004335441,5.7904,172.72,172.68,5.7916]
[1754004335642,3.21,172.7,172.69,3.21]
[1754004336037,5.7906,172.71,172.67,5.7917]
[1754004336038,6.85920846,172.73,172.67,3.21]
[1754004336244,3.21,172.71,172.65,3.64920846]
[1754004336442,4.20841717,172.7,172.67,3.64920846]
[1754004336646,7.41841717,172.7,172.67,3.64920846]
[1754004336840,5.7908,172.71,172.67,5.7917]
[1754004337039,3.64920846,172.75,172.66,3.64920846]
[1754004337040,4.20941029,172.7,172.66,3.64920846]
[1754004337240,3.21,172.68,172.67,3.21]
[1754004338540,3.21,172.69,172.67,9.0019]
[1754004338740,3.21,172.69,172.68,3.21]
[1754004338940,3.64920846,172.74,172.68,3.21]
[1754004338941,4.85799102,172.74,172.68,3.21]
[1754004339149,7.42039596,172.73,172.71,6.85920846]
[1754004339441,3.21,172.73,172.72,3.21]
[1754004339842,3.21,172.76,172.72,3.21]
[1754004340044,4.20937256,172.75,172.74,6.85920846]
[1754004340243,4.20937256,172.75,172.74,12.64850846]
[1754004340844,3.21,172.8,172.77,5.7884]
[1754004341044,3.21,172.8,172.79,3.21]
[1754004342550,8.06799102,172.84,172.8,3.21]
[1754004342845,3.21,172.87,172.83,3.21]
[1754004343047,3.21,172.87,172.85,8.9957]
[1754004343245,4.85799102,172.91,172.8,3.64920846]
[1754004343246,3.21,172.9,172.86,3.64920846]
[1754004343440,3.21,172.92,172.9,3.21]
[1754004343847,3.21,172.93,172.85,3.64920846]
[1754004344246,5.7845,172.9,172.85,12.64500846]
[1754004344447,3.21,172.89,172.86,3.21]
[1754004344649,3.21,172.93,172.86,3.21]
[1754004344952,3.21,172.86,172.85,3.21]
[1754004345750,3.21,172.85,172.84,3.21]
[1754004346048,3.21,172.91,172.78,3.21]
[1754004346251,3.21,172.84,172.78,3.21]
[1754004346455,3.64920846,172.83,172.78,3.21]
[1754004346648,3.21,172.82,172.78,3.21]
[1754004346947,5.7877,172.8,172.78,3.21]
[1754004347153,3.21,172.79,172.78,3.21]
[1754004347453,3.21,172.81,172.78,5.788]
[1754004347653,5.787,172.82,172.79,3.21]
[1754004347953,8.997,172.82,172.8,3.21]
[1754004348255,3.21,172.84,172.83,3.21]
[1754004348449,3.21,172.86,172.8,3.21]
[1754004348649,3.21,172.85,172.82,3.21]
[1754004348850,3.21,172.85,172.81,3.64920846]
[1754004349056,3.21,172.85,172.84,3.21]
[1754004349449,3.21,172.86,172.8,3.21]
[1754004350650,3.21,172.84,172.77,3.64920846]
[1754004350855,3.21,172.87,172.85,3.21]
[1754004351050,107.34,172.91,172.71,47.64920846]
[1754004351051,3.64920846,172.91,172.84,3.21]
[1754004351250,5.7847,172.89,172.85,5.7856]
[1754004351448,3.21,172.89,172.86,3.21]
[1754004352149,3.21,172.89,172.88,3.21]
[1754004352344,3.21,172.91,172.89,3.21]
[1754004352548,8.9941,172.91,172.89,3.21]
[1754004352745,3.21,172.9,172.89,3.21]
[1754004353454,3.21,172.91,172.9,3.21]
[1754004353652,107.32,172.96,172.9,3.21]
[1754004353653,112.71966064,172.96,172.9,3.21]
[1754004353860,3.21,172.95,172.91,3.21]
[1754004354155,3.21,172.95,172.89,3.21]
[1754004354348,5.39966064,172.94,172.86,5.7854]
[1754004354557,3.21,172.91,172.87,3.21]
[1754004355856,5.7842,172.9,172.87,3.21]
[1754004356056,3.21,172.88,172.87,3.21]
[1754004357060,5.39966064,172.92,172.86,3.21]
[1754004357354,3.21,172.91,172.86,3.21]
[1754004357549,3.21,172.88,172.86,3.21]
[1754004357750,5.39966064,172.92,172.82,5.39966064]
[1754004357951,3.21,172.89,172.88,3.21]
[1754004358159,5.39966064,172.94,172.84,5.39966064]
[1754004358353,3.21,172.91,172.9,3.21]
[1754004359260,3.34,172.95,172.9,3.21]
[1754004359449,5.7828,172.94,172.91,3.28]
[1754004359654,3.34,172.94,172.87,3.28]
[1754004360158,3.34,172.92,172.89,3.28]
[1754004360356,3.34,172.93,172.89,3.28]
[1754004360656,3.34,172.92,172.89,3.28]
[1754004361254,3.34,172.92,172.9,3.28]
[1754004361454,3.34,172.92,172.91,3.28]
[1754004362250,5.7822,172.96,172.92,5.7833]
[1754004362561,3.34,172.95,172.86,5.39966064]
[1754004362759,3.34,172.91,172.89,3.28]
[1754004362960,3.34,172.94,172.89,3.28]
[1754004363255,5.7838,172.92,172.9,3.28]
[1754004363459,3.34,172.91,172.9,3.28]
[1754004363660,3.34,172.9,172.89,3.28]
[1754004364755,3.34,172.94,172.89,3.28]
[1754004365156,3.34,172.93,172.89,3.28]
[1754004365350,3.34,172.93,172.9,3.28]
[1754004365660,3.34,172.96,172.9,3.28]
[1754004366051,9.1222,172.96,172.92,5.7834]
[1754004366454,392.5,172.99,172.91,3.28]
[1754004366656,5.782,172.97,172.94,3.28]
[1754004366960,3.34,172.98,172.91,3.28]
[1754004367159,5.7827,172.95,172.91,3.28]
[1754004367356,3.34,172.97,172.9,5.39966064]
[1754004367557,3.34,172.97,172.91,3.28]
[1754004367758,5.7825,172.95,172.91,9.0635]
[1754004367954,3.34,172.96,172.92,3.28]
[1754004368159,3.34,172.98,172.93,3.28]
[1754004368363,5.7817,172.98,172.94,5.7826]
[1754004368660,5.39966064,173.01,172.93,3.28]
[1754004368861,3.34,172.96,172.93,5.7831]
[1754004369161,3.34,172.96,172.95,3.28]
[1754004369963,3.34,172.96,172.93,5.7831]
[1754004369964,5.39966064,172.99,172.93,3.28]
[1754004370164,3.34,172.98,172.89,5.39966064]
[1754004370358,3.34,172.98,172.91,3.28]
[1754004370556,9.1233,172.93,172.92,3.28]
[1754004370762,3.34,172.93,172.85,5.39966064]
[1754004371063,3.34,172.93,172.86,3.28]
[1754004371260,5.7832,172.93,172.91,3.28]
[1754004371463,9.1232,172.93,172.92,3.28]
[1754004372263,9.1232,172.93,172.83,44.0]
[1754004372264,5.39966064,172.95,172.88,5.7845]
[1754004372467,3.34,172.92,172.84,3.28]
[1754004372763,3.34,172.92,172.78,527.66709302]
[1754004372764,3.34,172.92,172.86,3.64431604]
[1754004372968,3.64431604,172.96,172.89,3.28]
[1754004373168,3.34,172.95,172.89,3.28]
[1754004374566,9.1241,172.91,172.89,3.28]
[1754004374771,3.34,172.9,172.89,3.28]
[1754004375367,9.1241,172.9,172.89,3.28]
[1754004375673,3.34,172.91,172.87,3.28]
[1754004375870,5.7848,172.88,172.87,3.28]
[1754004376070,9.1248,172.88,172.87,3.28]
[1754004376664,3.34,172.88,172.84,3.28]
[1754004376872,3.34,172.87,172.82,3.28]
[1754004377067,11.5647,172.96,172.82,3.28]
[1754004377068,3.34,172.85,172.82,3.28]
[1754004377270,5.7863,172.84,172.82,3.28]
[1754004377474,3.34,172.83,172.82,3.28]
[1754004377772,5.7863,172.84,172.81,5.7869]
[1754004377972,9.1263,172.84,172.83,3.28]
[1754004379676,3.34,172.84,172.79,3.28]
[1754004379876,3.34,172.84,172.81,3.28]
[1754004380371,9.1264,172.83,172.82,3.28]
[1754004382868,5.787,172.82,172.79,5.7876]
[1754004383071,9.127,172.82,172.81,3.28]
[1754004383277,3.34,172.82,172.79,3.28]
[1754004383474,3.34,172.8,172.79,3.28]
[1754004383977,3.34,172.81,172.73,3.28]
[1754004384177,5.40359418,172.78,172.73,3.28]
[1754004384374,5.40359418,172.78,172.67,49.40359418]
[1754004384574,9.1293,172.75,172.74,3.28]
[1754004384975,3.34,172.75,172.74,3.28]
[1754004386481,5.7891,172.75,172.72,3.28]
[1754004386775,3.34,172.74,172.73,3.28]
[1754004386975,6.4113481,172.84,172.63,55.586]
[1754004386976,4.85799102,172.82,172.74,3.28]
[1754004387281,3.34,172.78,172.74,3.28]
[1754004387671,5.789,172.76,172.74,3.28]
[1754004387875,3.34,172.76,172.74,3.28]
[1754004388079,3.34,172.75,172.72,3.28]
[1754004388279,5.40359418,172.79,172.69,132.2280117]
[1754004388280,3.14,172.78,172.73,3.28]
[1754004388477,3.14,172.78,172.69,132.2280117]
[1754004388782,8.9292,172.75,172.72,3.09]
[1754004389187,8.9292,172.75,172.73,3.09]
[1754004389377,3.14,172.75,172.72,3.09]
[1754004389981,3.14,172.75,172.73,3.09]
[1754004390177,5.7892,172.75,172.69,132.2280117]
[1754004390383,5.40359418,172.79,172.71,5.7903]
[1754004390678,3.14,172.75,172.72,3.09]
[1754004391184,3.14,172.75,172.74,3.09]
[1754004391981,3.14,172.79,172.75,3.09]
[1754004392184,3.14,172.76,172.64,3.09]
[1754004392376,3.14,172.76,172.67,3.09]
[1754004392576,3.14,172.73,172.7,3.09]
[1754004393183,5.40359418,172.77,172.7,3.09]
[1754004393385,3.14,172.76,172.7,3.09]
[1754004393983,3.14,172.74,172.68,5.40359418]
[1754004394179,3.14,172.74,172.73,3.09]
[1754004394379,3.14,172.74,172.71,3.09]
[1754004395075,3.14,172.73,172.71,3.09]
[1754004395275,8.9299,172.73,172.69,5.7909]
[1754004395484,8.9299,172.73,172.72,3.09]
[1754004396183,3.14,172.74,172.73,3.09]
[1754004396784,3.14,172.74,172.68,3.09]
[1754004397182,3.14,172.74,172.64,44.0]
[1754004397489,3.14,172.74,172.65,3.09]
[1754004397885,8.9305,172.71,172.68,3.09]
[1754004398085,3.14,172.74,172.68,3.09]
[1754004398387,5.7906,172.71,172.67,5.7916]
[1754004398592,3.14,172.7,172.68,3.09]
[1754004398889,3.14,172.73,172.68,3.09]
[1754004399278,3.14,172.73,172.68,3.65276277]
[1754004399489,3.14,172.73,172.69,3.09]
[1754004399790,3.14,172.75,172.71,3.09]
[1754004400490,3.14,172.75,172.72,3.09]
[1754004400889,3.14,172.74,172.73,3.09]
[1754004401284,3.14,172.74,172.68,6.74276277]
[1754004401588,3.14,172.74,172.69,3.09]
[1754004401984,5.7905,172.71,172.69,3.09]
[1754004402179,3.14,172.7,172.69,3.09]
[1754004402585,3.14,172.74,172.66,3.09]
[1754004402786,3.14,172.74,172.68,3.09]
[1754004403189,8.9304,172.72,172.69,3.09]
[1754004403688,3.14,172.74,172.7,3.09]
[1754004403886,3.14,172.74,172.68,3.09]
[1754004404089,3.14,172.74,172.69,3.65276277]
[1754004404290,3.14,172.74,172.7,3.09]
[1754004404785,3.14,172.74,172.69,3.65276277]
[1754004404786,3.14,172.74,172.72,3.09]
[1754004404990,3.65276277,172.79,172.72,3.09]
[1754004405193,3.14,172.78,172.72,3.09]
[1754004406488,5.7886,172.77,172.73,5.7896]
[1754004406793,496.26,172.85,172.74,3.09]
[1754004406794,3.14,172.8,172.74,3.09]
[1754004407491,3.14,172.78,172.72,3.09]
[1754004408685,3.14,172.75,172.73,3.09]
[1754004408885,3.14,172.78,172.73,3.09]
[1754004409292,8.9295,172.74,172.73,3.09]
[1754004409688,3.14,172.74,172.73,3.09]
[1754004410394,8.9295,172.74,172.73,3.09]
[1754004412598,3.14,172.74,172.73,3.09]
[1754004415989,4.85799102,172.84,172.73,3.09]
[1754004416194,3.65276277,172.82,172.73,3.09]
[1754004416394,5.7883,172.78,172.74,5.7892]
[1754004416599,8.9283,172.78,172.75,3.09]
[1754004416995,8.9283,172.78,172.75,5.7889]
[1754004417203,8.9283,172.78,172.77,3.09]
[1754004417400,3.14,172.78,172.77,3.09]
[1754004418404,3.03,172.81,172.75,3.18]
[1754004418594,3.03,172.79,172.75,3.18]
[1754004418799,5.7886,172.77,172.75,3.18]
[1754004418998,3.03,172.76,172.75,3.18]
[1754004419398,8.8188,172.76,172.75,3.18]
[1754004419998,3.03,172.76,172.75,3.18]
[1754004420309,8.8186,172.77,172.76,3.18]
[1754004420799,8.8183,172.78,172.73,3.18]
[1754004420999,3.03,172.81,172.73,3.18]
[1754004421194,4.15990962,172.8,172.73,3.18]
[1754004421396,5.7883,172.78,172.75,5.7891]
[1754004421703,8.8183,172.78,172.77,3.18]
[1754004421906,8.8186,172.77,172.76,3.18]
[1754004422102,7.1926035,172.77,172.73,3.18]
[1754004422297,3.65276277,172.8,172.72,3.65276277]
[1754004422298,5.7893,172.75,172.74,3.18]
[1754004422502,3.03,172.79,172.72,3.65276277]
[1754004422700,3.03,172.77,172.75,3.18]
[1754004422907,8.819,172.76,172.75,3.18]
[1754004423100,3.03,172.79,172.75,3.18]
[1754004423397,4.16477227,172.78,172.75,3.18]
[1754004423704,5.7882,172.78,172.76,3.18]
[1754004424307,3.03,172.81,172.76,3.18]
[1754004424505,4.16712497,172.8,172.76,3.18]
[1754004424801,12.98522497,172.79,172.76,3.18]
[1754004425000,12.98522497,172.79,172.74,3.65276277]
[1754004425001,7.19712497,172.78,172.77,3.18]
[1754004425201,3.03,172.78,172.77,3.18]